bitfinex-derivatives/quotes_BTCF0:USTF0_20230102
["timestamp","ask_amount","ask_price","bid_price","bid_amount"]
[1672691190050,0.1183,16735.0,16734.0,3.97981057]
[1672691190259,0.1183,16735.0,16734.0,4.28051057]
[1672691191629,0.1183,16735.0,16734.0,3.97981057]
[1672691192045,0.1183,16735.0,16734.0,4.28051057]
[1672691194153,0.1183,16735.0,16734.0,3.97981057]
[1672691194365,0.1183,16735.0,16734.0,4.28051057]
[1672691196790,0.1183,16735.0,16734.0,3.97981057]
[1672691197001,0.1183,16735.0,16734.0,4.28051057]
[1672691203970,0.1183,16735.0,16734.0,3.97981057]
[1672691204178,0.1183,16735.0,16734.0,4.28051057]
[1672691212385,0.1043,16735.0,16734.0,4.27051057]
[1672691212599,0.1173,16735.0,16734.0,4.27951057]
[1672691213024,0.1183,16735.0,16734.0,4.27651057]
[1672691213220,0.1183,16735.0,16734.0,3.97581057]
[1672691213425,0.1183,16735.0,16734.0,4.27651057]
[1672691219414,0.1183,16735.0,16734.0,4.87401057]
[1672691224755,0.1183,16735.0,16734.0,4.87384945]
[1672691227067,0.014,16735.0,16734.0,4.97824945]
[1672691231692,0.014,16735.0,16734.0,4.67754945]
[1672691231904,0.014,16735.0,16734.0,4.97824945]
[1672691232533,0.014,16735.0,16734.0,4.97854945]
[1672691232746,0.00071789,16735.0,16734.0,5.08294945]
[1672691233687,0.3047,16738.0,16734.0,5.20894945]
[1672691233899,0.3047,16738.0,16737.0,0.1047]
[1672691234109,0.3047,16738.0,16737.0,0.3047]
[1672691234525,0.3047,16738.0,16737.0,4.0747]
[1672691235572,0.3047,16738.0,16737.0,4.0837]
[1672691236943,0.3047,16738.0,16737.0,3.979]
[1672691241355,0.1047,16738.0,16737.0,3.979]
[1672691241566,0.3007,16739.0,16737.0,4.0835]
[1672691241567,0.6054,16739.0,16737.0,4.0835]
[1672691241774,0.6054,16739.0,16738.0,0.2]
[1672691242094,0.4054,16739.0,16738.0,0.2]
[1672691242505,0.3,16741.0,16738.0,0.304]
[1672691242506,0.4048,16741.0,16738.0,0.304]
[1672691242716,0.4048,16741.0,16739.0,0.1047]
[1672691242932,0.4048,16741.0,16740.0,0.2]
[1672691243348,0.3041,16741.0,16740.0,0.2]
[1672691243767,0.30402377,16741.0,16740.0,0.2]
[1672691244406,0.30402377,16741.0,16740.0,0.211]
[1672691245457,0.30402377,16741.0,16740.0,0.3154]
[1672691245458,0.2,16741.0,16740.0,0.3154]
[1672691246921,0.3047,16741.0,16740.0,0.211]
[1672691247344,0.1047,16741.0,16740.0,0.211]
[1672691247552,0.3045,16742.0,16740.0,0.3157]
[1672691247760,0.3045,16742.0,16741.0,0.1047]
[1672691249133,0.3045,16742.0,16741.0,0.1157]
[1672691249658,0.1045,16742.0,16741.0,0.1157]
[1672691249870,0.2,16743.0,16741.0,0.1151]
[1672691250079,0.2,16743.0,16742.0,0.3045]
[1672691251755,0.2,16743.0,16742.0,0.3155]
[1672691252495,0.2,16743.0,16742.0,0.3045]
[1672691252805,0.3043,16743.0,16742.0,0.011]
[1672691253014,0.3043,16743.0,16741.0,0.1047]
[1672691253229,0.1037,16742.0,16741.0,0.1047]
[1672691254492,0.1037,16742.0,16741.0,0.1137]
[1672691257014,0.4054,16742.0,16741.0,0.009]
[1672691257635,0.1047,16742.0,16741.0,0.009]
[1672691267098,0.1041,16742.0,16741.0,0.009]
[1672691273824,0.1041,16742.0,16741.0,0.3097]
[1672691279094,0.1041,16742.0,16741.0,0.009]
[1672691279414,0.1041,16742.0,16741.0,0.3097]
[1672691284879,0.1041,16742.0,16741.0,0.009]
[1672691285084,0.1041,16742.0,16741.0,0.3097]
[1672691286967,0.3037,16743.0,16741.0,0.4142]
[1672691287182,0.3037,16743.0,16742.0,0.2]
[1672691288548,0.3037,16743.0,16742.0,0.21]
[1672691294866,0.3037,16743.0,16742.0,0.20986482]
[1672691297171,0.3047,16743.0,16742.0,0.20986482]
[1672691314726,0.3047,16743.0,16742.0,3.97986482]
[1672691317257,0.3047,16743.0,16742.0,0.20986482]
[1672691326925,0.3038,16743.0,16742.0,0.20986482]
[1672691338483,0.6045,16743.0,16742.0,0.20986482]
[1672691339958,0.3038,16743.0,16742.0,0.20986482]
[1672691340486,0.3038,16743.0,16742.0,0.20979194]
[1672691377791,0.6045,16743.0,16742.0,0.20979194]
[1672691378434,0.3038,16743.0,16742.0,0.20979194]
[1672691378637,0.6045,16743.0,16742.0,0.20979194]
[1672691382315,0.60438522,16743.0,16742.0,0.20979194]
[1672691383059,0.60438522,16743.0,16742.0,0.01]
[1672691386112,0.60438522,16743.0,16742.0,0.11]
[1672691387267,0.60438522,16743.0,16742.0,0.01]
[1672691388632,0.60438522,16743.0,16742.0,0.21]
[1672691396519,0.30368522,16743.0,16742.0,0.21]
[1672691396831,0.60438522,16743.0,16742.0,0.21]
[1672691407960,0.30368522,16743.0,16742.0,0.21]
[1672691430143,0.60438522,16743.0,16742.0,0.21]
[1672691432139,0.4045,16743.0,16742.0,0.21]
[1672691433403,0.4045,16743.0,16742.0,0.20977722]
[1672691434029,0.1038,16743.0,16742.0,0.20977722]
[1672691441484,0.10372102,16743.0,16742.0,0.20977722]
[1672691444853,0.40442102,16743.0,16742.0,0.20977722]
[1672691446950,0.10372102,16743.0,16742.0,0.20977722]
[1672691447271,0.40442102,16743.0,16742.0,0.20977722]
[1672691452103,0.10372102,16743.0,16742.0,0.20977722]
[1672691452421,0.40442102,16743.0,16742.0,0.20977722]
[1672691475847,0.40442102,16743.0,16742.0,0.00977722]
[1672691476160,0.40442102,16743.0,16742.0,0.20977722]
[1672691477002,0.10372102,16743.0,16742.0,0.20977722]
[1672691477217,0.40442102,16743.0,16742.0,0.20977722]
[1672691484471,0.10372102,16743.0,16742.0,0.20977722]
[1672691484676,0.40442102,16743.0,16742.0,0.20977722]
[1672691495211,0.10372102,16743.0,16742.0,0.20977722]
[1672691495407,0.40442102,16743.0,16742.0,0.20977722]
[1672691496254,0.10372102,16743.0,16742.0,0.20955268]
[1672691496456,0.40442102,16743.0,16742.0,0.20955268]
[1672691500569,0.40442102,16743.0,16742.0,0.00955268]
[1672691500772,0.40442102,16743.0,16742.0,0.10955268]
[1672691502349,0.40442102,16743.0,16742.0,0.00955268]
[1672691506767,0.40442102,16743.0,16742.0,0.10955268]
[1672691507400,0.40442102,16743.0,16742.0,0.00955268]
[1672691507813,0.10372102,16743.0,16742.0,0.20955268]
[1672691508237,0.40442102,16743.0,16742.0,0.00955268]
[1672691508874,0.40442102,16743.0,16742.0,0.10955268]
[1672691509287,0.40442102,16743.0,16742.0,0.00955268]
[1672691509497,0.40442102,16743.0,16742.0,0.10955268]
[1672691509701,0.10372102,16743.0,16742.0,0.00955268]
[1672691509916,0.40442102,16743.0,16742.0,0.00955268]
[1672691511715,0.40442102,16743.0,16742.0,0.10955268]
[1672691512650,0.40442102,16743.0,16742.0,0.00955268]
[1672691512860,0.40442102,16743.0,16742.0,0.10955268]
[1672691513282,0.40442102,16743.0,16742.0,0.00955268]
[1672691513492,0.40442102,16743.0,16742.0,0.10955268]
[1672691514755,0.10372102,16743.0,16742.0,0.10955268]
[1672691515286,0.40442102,16743.0,16742.0,0.10955268]
[1672691519278,0.40442102,16743.0,16742.0,0.00955268]
[1672691519489,0.40442102,16743.0,16742.0,0.10955268]
[1672691520960,0.40442102,16743.0,16742.0,0.00955268]
[1672691521176,0.50912102,16743.0,16742.0,0.00955268]
[1672691522952,0.20842102,16743.0,16742.0,0.00955268]
[1672691523162,0.50912102,16743.0,16742.0,0.00955268]
[1672691526959,0.50912102,16743.0,16738.0,0.2]
[1672691526960,0.8282,16742.0,16738.0,0.2]
[1672691527170,0.3047,16739.0,16738.0,0.2]
[1672691527794,0.3047,16739.0,16738.0,3.97]
[1672691529155,0.3047,16739.0,16738.0,4.092]
[1672691529369,0.1047,16739.0,16738.0,4.092]
[1672691534631,0.3047,16739.0,16738.0,4.092]
[1672691538113,0.1047,16739.0,16738.0,4.092]
[1672691545881,0.3047,16739.0,16738.0,4.092]
[1672691546298,0.1047,16739.0,16738.0,4.092]
[1672691547140,0.3047,16739.0,16738.0,4.092]
[1672691548201,0.1047,16739.0,16738.0,4.092]
[1672691550937,0.3047,16739.0,16738.0,4.092]
[1672691551454,0.1047,16739.0,16738.0,4.092]
[1672691557134,0.3047,16739.0,16738.0,4.092]
[1672691559025,0.1047,16739.0,16738.0,4.092]
[1672691572389,0.3047,16739.0,16738.0,4.092]
[1672691573442,0.1047,16739.0,16738.0,4.092]
[1672691573656,0.1047,16739.0,16738.0,4.091819]
[1672691575024,0.3047,16739.0,16738.0,4.091819]
[1672691583105,1.1411,16739.0,16738.0,0.122]
[1672691583321,1.1411,16739.0,16733.0,0.6253]
[1672691583322,1.1418,16739.0,16733.0,0.6253]
[1672691583524,0.3007,16736.0,16734.0,3.97]
[1672691583955,0.2,16735.0,16734.0,3.97]
[1672691584370,0.2,16735.0,16734.0,0.2]
[1672691584692,0.2,16735.0,16734.0,0.1]
[1672691585744,0.215,16735.0,16734.0,0.121]
[1672691585954,0.215,16735.0,16734.0,0.021]
[1672691586176,0.215,16735.0,16731.0,0.8983]
[1672691586177,0.2,16734.0,16731.0,0.8983]
[1672691586374,0.1,16733.0,16732.0,0.2]
[1672691586586,0.309,16733.0,16732.0,3.97]
[1672691587013,0.2043,16733.0,16732.0,3.97]
[1672691587231,0.209,16733.0,16732.0,3.97]
[1672691588504,0.309,16733.0,16732.0,3.97]
[1672691589139,0.324,16733.0,16732.0,3.972]
[1672691589769,0.327,16733.0,16732.0,3.972]
[1672691598066,0.2223,16733.0,16732.0,3.972]
[1672691600787,0.1223,16733.0,16732.0,3.972]
[1672691603943,0.1223,16733.0,16732.0,4.2727]
[1672691604781,0.1223,16733.0,16732.0,3.972]
[1672691607835,0.1223,16733.0,16732.0,4.2727]
[1672691608148,0.1223,16733.0,16732.0,3.972]
[1672691613610,0.12209468,16733.0,16732.0,3.972]
[1672691647151,0.1227,16733.0,16732.0,3.972]
[1672691655576,0.1227,16733.0,16732.0,4.2727]
[1672691659556,0.1227,16733.0,16732.0,3.972]
[1672691667232,0.1227,16733.0,16732.0,3.97178506]
[1672691667777,0.1227,16733.0,16732.0,4.27248506]
[1672691669445,0.1227,16733.0,16732.0,3.97178506]
[1672691704129,0.1227,16733.0,16732.0,4.27248506]
[1672691712217,0.1227,16733.0,16732.0,4.2722912]
[1672691724623,0.1227,16733.0,16732.0,3.9715912]
[1672691724835,0.1227,16733.0,16732.0,4.2722912]
[1672691726936,0.018,16733.0,16732.0,4.3767912]
[1672691730719,0.018,16733.0,16732.0,4.0760912]
[1672691731038,0.218,16733.0,16732.0,4.0760912]
[1672691738197,0.001,16733.0,16732.0,4.1640912]
[1672691738620,0.4048,16734.0,16732.0,4.0740912]
[1672691738833,0.1,16733.0,16732.0,4.0810912]
[1672691739034,0.1,16733.0,16732.0,0.3110912]
[1672691739453,0.1,16733.0,16732.0,4.0810912]
[1672691757016,0.2047,16733.0,16732.0,3.9765912]
[1672691759323,0.1047,16733.0,16732.0,3.9765912]
[1672691762685,0.1047,16733.0,16732.0,3.97646211]
[1672691765320,0.3047,16733.0,16732.0,3.97646211]
[1672691786855,0.3047,16733.0,16732.0,4.27716211]
[1672691792117,0.3047,16733.0,16732.0,3.97646211]
[1672691809874,0.3047,16733.0,16732.0,3.97639539]
[1672691827536,0.3047,16733.0,16732.0,4.27709539]
[1672691827741,0.3047,16733.0,16732.0,3.97639539]
[1672691827955,0.3047,16733.0,16732.0,4.27709539]
[1672691828371,0.1047,16733.0,16732.0,4.27709539]
[1672691831631,0.2,16736.0,16732.0,4.38159539]
[1672691831632,0.1037,16734.0,16732.0,4.38159539]
[1672691831845,0.1037,16734.0,16732.0,0.61159539]
[1672691832373,0.1037,16734.0,16733.0,3.77]
[1672691832572,0.4054,16737.0,16733.0,4.5763]
[1672691832784,0.4054,16739.0,16736.0,0.1045]
[1672691832997,0.4054,16739.0,16737.0,0.104]
[1672691833203,0.4054,16739.0,16738.0,0.2]
[1672691833420,0.6054,16739.0,16738.0,0.2]
[1672691834577,0.5007,16739.0,16738.0,0.3044]
[1672691834997,0.5247,16739.0,16738.0,0.3144]
[1672691836999,0.6294,16739.0,16738.0,0.21]
[1672691841838,0.3247,16739.0,16738.0,0.3146]
[1672691842042,0.024,16739.0,16738.0,0.3146]
[1672691842249,0.024,16739.0,16738.0,0.4193]
[1672691845521,0.024,16739.0,16738.0,0.72]
[1672691852029,0.022,16739.0,16738.0,0.718]
[1672691854755,0.022,16739.0,16738.0,0.71784969]
[1672691859069,0.022,16739.0,16738.0,0.41714969]
[1672691859279,0.022,16739.0,16738.0,0.71784969]
[1672691868949,0.022,16739.0,16738.0,0.41714969]
[1672691869160,0.022,16739.0,16738.0,0.71784969]
[1672691877049,0.022,16739.0,16738.0,0.61314969]
[1672691881037,0.022,16739.0,16738.0,0.31244969]
[1672691881248,0.022,16739.0,16738.0,0.61314969]
[1672691883661,0.022,16739.0,16738.0,0.31244969]
[1672691883877,0.022,16739.0,16738.0,0.61314969]
[1672691887460,0.022,16739.0,16738.0,0.31244969]
[1672691888087,0.022,16739.0,16738.0,0.61314969]
[1672691890817,0.022,16739.0,16738.0,0.31244969]
[1672691891020,0.022,16739.0,16738.0,0.61314969]
[1672691891666,0.022,16739.0,16738.0,0.31244969]
[1672691891882,0.022,16739.0,16738.0,0.61314969]
[1672691895793,0.022,16739.0,16738.0,0.31244969]
[1672691902076,0.022,16739.0,16738.0,0.31232592]
[1672691904375,0.022,16739.0,16738.0,4.08232592]
[1672691907946,0.022,16739.0,16738.0,4.38302592]
[1672691916044,0.02193196,16739.0,16738.0,4.38302592]
[1672691936019,0.02193196,16739.0,16738.0,4.08232592]
[1672691936224,0.02193196,16739.0,16738.0,4.38302592]
[1672691936752,0.02193196,16739.0,16738.0,4.08232592]
[1672691937168,0.02193196,16739.0,16738.0,4.38302592]
[1672691941383,0.02193196,16739.0,16738.0,4.98062592]
[1672691943377,0.02193196,16739.0,16738.0,4.67992592]
[1672691943588,0.02193196,16739.0,16738.0,4.98062592]
[1672691949999,0.02193196,16739.0,16738.0,4.67992592]
[1672691950208,0.02193196,16739.0,16738.0,4.98062592]
[1672691954936,0.02193196,16739.0,16738.0,4.67992592]
[1672691955148,0.02193196,16739.0,16738.0,4.98062592]
[1672691961779,0.02193196,16739.0,16738.0,4.67992592]
[1672691962094,0.02193196,16739.0,16738.0,4.98062592]
[1672691968492,0.02193196,16739.0,16738.0,4.98041228]
[1672691974699,0.02193196,16739.0,16738.0,4.67971228]
[1672691974910,0.02193196,16739.0,16738.0,4.98041228]
[1672691976808,0.02193196,16739.0,16738.0,4.98021228]
[1672691994992,0.02193196,16739.0,16738.0,4.67951228]
[1672691995202,0.02193196,16739.0,16738.0,4.98021228]
[1672692017062,0.02193196,16739.0,16738.0,4.9800589]
[1672692025790,0.02193196,16739.0,16738.0,4.6793589]
[1672692026207,0.02193196,16739.0,16738.0,4.9800589]
[1672692027786,0.02193196,16739.0,16738.0,4.6793589]
[1672692028107,0.02193196,16739.0,16738.0,4.9800589]
[1672692031790,0.02193196,16739.0,16738.0,4.6793589]
[1672692031986,0.02193196,16739.0,16738.0,4.9800589]
[1672692034000,0.02193196,16739.0,16738.0,4.6793589]
[1672692034200,0.02193196,16739.0,16738.0,4.9800589]
[1672692043977,0.02193196,16739.0,16738.0,4.6793589]
[1672692044187,0.02193196,16739.0,16738.0,4.9800589]
[1672692046809,0.02193196,16739.0,16738.0,4.6793589]
[1672692047026,0.02193196,16739.0,16738.0,4.9800589]
[1672692050381,0.02193196,16739.0,16738.0,4.6793589]
[1672692050604,0.02193196,16739.0,16738.0,4.9800589]
[1672692051958,0.02193196,16739.0,16738.0,4.6793589]
[1672692052170,0.02193196,16739.0,16738.0,4.9800589]
[1672692053961,0.02193196,16739.0,16738.0,4.6793589]
[1672692054164,0.02193196,16739.0,16738.0,4.9800589]
[1672692068165,0.02193196,16739.0,16738.0,4.97992188]
[1672692068484,0.02193196,16739.0,16738.0,4.67922188]
[1672692068794,0.02193196,16739.0,16738.0,4.97992188]
[1672692084043,0.02193196,16739.0,16738.0,4.67922188]
[1672692084249,0.02193196,16739.0,16738.0,4.97992188]
[1672692096870,0.02193196,16739.0,16738.0,4.67922188]
[1672692097088,0.02193196,16739.0,16738.0,4.97992188]
[1672692100029,0.02193196,16739.0,16738.0,4.67922188]
[1672692100239,0.02193196,16739.0,16738.0,4.97992188]
[1672692100765,0.02193196,16739.0,16738.0,4.67922188]
[1672692101188,0.02193196,16739.0,16738.0,4.97992188]
[1672692111808,0.02193196,16739.0,16738.0,4.67922188]
[1672692116005,0.02193196,16739.0,16738.0,4.67914125]
[1672692118641,0.02193196,16739.0,16738.0,4.97984125]
[1672692131983,0.02193196,16739.0,16738.0,4.67914125]
[1672692132195,0.02193196,16739.0,16738.0,4.97984125]
[1672692135046,0.02193196,16739.0,16738.0,4.67914125]
[1672692137777,0.02193196,16739.0,16738.0,4.97984125]
[1672692150080,0.02193196,16739.0,16738.0,4.67914125]
[1672692150288,0.02193196,16739.0,16738.0,4.97984125]
[1672692154913,0.02193196,16739.0,16738.0,4.67914125]
[1672692155326,0.02193196,16739.0,16738.0,4.97984125]
[1672692165526,0.02193196,16739.0,16738.0,4.97967388]
[1672692167940,0.02193196,16739.0,16738.0,4.67897388]
[1672692168259,0.02193196,16739.0,16738.0,4.97967388]
[1672692168473,0.02193196,16739.0,16738.0,5.08377388]
[1672692176985,0.02193196,16739.0,16738.0,4.97907388]
[1672692180656,0.2,16742.0,16739.0,0.2]
[1672692180868,0.2,16742.0,16741.0,0.104]
[1672692181081,0.2,16742.0,16741.0,0.304]
[1672692182026,0.201,16742.0,16741.0,0.315]
[1672692185907,0.5017,16742.0,16741.0,0.315]
[1672692187176,0.6064,16742.0,16741.0,0.211]
[1672692188013,0.3057,16742.0,16741.0,0.211]
[1672692194633,0.3057,16742.0,16741.0,0.5117]
[1672692197160,0.3057,16742.0,16741.0,4.2817]
[1672692205885,0.3057,16742.0,16741.0,3.981]
[1672692209878,0.3057,16742.0,16741.0,4.2817]
[1672692211347,0.3057,16742.0,16741.0,3.981]
[1672692218188,0.3057,16742.0,16741.0,0.011]
[1672692218923,0.3057,16742.0,16741.0,0.211]
[1672692221240,0.6064,16742.0,16741.0,0.211]
[1672692224073,0.3057,16742.0,16741.0,0.211]
[1672692226181,0.6064,16742.0,16741.0,0.211]
[1672692228487,0.6064,16742.0,16741.0,0.21080873]
[1672692229320,0.3057,16742.0,16741.0,0.21080873]
[1672692234370,0.3057,16742.0,16741.0,3.98080873]
[1672692246983,0.4104,16742.0,16741.0,3.98080873]
[1672692252548,0.2104,16742.0,16741.0,3.98080873]
[1672692253603,0.1057,16742.0,16741.0,3.98080873]
[1672692253823,0.001,16742.0,16741.0,4.08550873]
[1672692254032,0.001,16742.0,16741.0,4.49090873]
[1672692254231,0.4054,16745.0,16742.0,0.2]
[1672692254443,0.4054,16745.0,16743.0,0.1047]
[1672692254653,0.2,16744.0,16743.0,0.1047]
[1672692256436,0.4054,16745.0,16743.0,0.1157]
[1672692256863,0.4054,16745.0,16744.0,0.2]
[1672692257181,0.4054,16745.0,16744.0,0.3044]
[1672692257910,0.4054,16745.0,16744.0,0.3154]
[1672692259698,0.4044,16745.0,16744.0,0.3148]
[1672692267053,0.4054,16745.0,16744.0,0.3157]
[1672692277053,0.4054,16745.0,16744.0,0.211]
[1672692277994,0.1047,16745.0,16744.0,0.211]
[1672692278199,0.3047,16745.0,16744.0,0.211]
[1672692296598,0.6054,16745.0,16744.0,0.211]
[1672692300483,0.1047,16746.0,16744.0,0.3157]
[1672692300692,0.1047,16746.0,16745.0,0.1038]
[1672692301747,0.1047,16746.0,16745.0,0.1148]
[1672692305953,0.1047,16746.0,16745.0,0.011]
[1672692308478,0.2094,16746.0,16745.0,0.011]
[1672692309003,0.2094,16746.0,16745.0,0.01093093]
[1672692323206,0.5101,16746.0,16745.0,0.01093093]
[1672692325842,0.2094,16746.0,16745.0,0.01093093]
[1672692326151,0.5101,16746.0,16745.0,0.01093093]
[1672692337803,0.2094,16746.0,16745.0,0.01093093]
[1672692338020,0.5101,16746.0,16745.0,0.01093093]
[1672692344010,0.2094,16746.0,16745.0,0.01093093]
[1672692344324,0.5101,16746.0,16745.0,0.01093093]
[1672692345900,0.2094,16746.0,16745.0,0.01093093]
[1672692346111,0.5101,16746.0,16745.0,0.01093093]
[1672692346740,0.2094,16746.0,16745.0,0.01093093]
[1672692347053,0.5101,16746.0,16745.0,0.01093093]
[1672692355262,0.5101,16746.0,16745.0,0.01082746]
[1672692378905,0.2094,16746.0,16745.0,0.01082746]
[1672692379228,0.5101,16746.0,16745.0,0.01082746]
[1672692389000,0.2094,16746.0,16745.0,0.01082746]
[1672692389208,0.5101,16746.0,16745.0,0.01082746]
[1672692390989,0.2094,16746.0,16745.0,0.01082746]
[1672692391310,0.5101,16746.0,16745.0,0.01082746]
[1672692399072,0.2094,16746.0,16745.0,0.01082746]
[1672692399392,0.5101,16746.0,16745.0,0.01082746]
[1672692407170,0.5101,16746.0,16745.0,0.01067703]
[1672692408744,0.2094,16746.0,16745.0,0.01067703]
[1672692408955,0.5101,16746.0,16745.0,0.01067703]
[1672692410004,0.2094,16746.0,16745.0,0.01067703]
[1672692410218,0.5101,16746.0,16745.0,0.01067703]
[1672692411163,0.2094,16746.0,16745.0,0.01067703]
[1672692411374,0.5101,16746.0,16745.0,0.01067703]
[1672692412747,0.2094,16746.0,16745.0,0.01067703]
[1672692413063,0.5101,16746.0,16745.0,0.01067703]
[1672692414107,0.2094,16746.0,16745.0,0.01067703]
[1672692414323,0.5101,16746.0,16745.0,0.01067703]
[1672692416625,0.2094,16746.0,16745.0,0.01067703]
[1672692416839,0.5101,16746.0,16745.0,0.01067703]
[1672692422733,0.2094,16746.0,16745.0,0.01067703]
[1672692422951,0.5101,16746.0,16745.0,0.01067703]
[1672692425567,0.2094,16746.0,16745.0,0.01067703]
[1672692425989,0.5101,16746.0,16745.0,0.01067703]
[1672692430831,0.2094,16746.0,16745.0,0.01067703]
[1672692431045,0.5101,16746.0,16745.0,0.01067703]
[1672692432932,0.2094,16746.0,16745.0,0.01067703]
[1672692433148,0.5101,16746.0,16745.0,0.01067703]
[1672692446695,0.2094,16746.0,16745.0,0.01067703]
[1672692446900,0.5101,16746.0,16745.0,0.01067703]
[1672692450797,0.2094,16746.0,16745.0,0.01067703]
[1672692451008,0.5101,16746.0,16745.0,0.01067703]
[1672692451639,0.2094,16746.0,16745.0,0.01067703]
[1672692451849,0.5101,16746.0,16745.0,0.01067703]
[1672692454897,0.2094,16746.0,16745.0,0.01067703]
[1672692455108,0.5101,16746.0,16745.0,0.01067703]
[1672692456053,0.5101,16746.0,16745.0,0.01043792]
[1672692458989,0.2094,16746.0,16745.0,0.01043792]
[1672692459309,0.5101,16746.0,16745.0,0.01043792]
[1672692459519,0.2094,16746.0,16745.0,0.01043792]
[1672692459834,0.5101,16746.0,16745.0,0.01043792]
[1672692470036,0.2094,16746.0,16745.0,0.01043792]
[1672692470354,0.5101,16746.0,16745.0,0.01043792]
[1672692475075,0.2094,16746.0,16745.0,0.01043792]
[1672692475285,0.5101,16746.0,16745.0,0.01043792]
[1672692477393,0.2094,16746.0,16745.0,0.01043792]
[1672692477806,0.5101,16746.0,16745.0,0.01043792]
[1672692478233,0.2094,16746.0,16745.0,0.01043792]
[1672692478969,0.5101,16746.0,16745.0,0.01043792]
[1672692479602,0.2094,16746.0,16745.0,0.01043792]
[1672692480116,0.5101,16746.0,16745.0,0.01043792]
[1672692480537,0.2094,16746.0,16745.0,0.01043792]
[1672692480960,0.5101,16746.0,16745.0,0.01043792]
[1672692483057,0.2094,16746.0,16745.0,0.01043792]
[1672692483270,0.5101,16746.0,16745.0,0.01043792]
[1672692487079,0.2094,16746.0,16745.0,0.01043792]
[1672692487285,0.5101,16746.0,16745.0,0.01043792]
[1672692492016,0.2094,16746.0,16745.0,0.01043792]
[1672692492226,0.5101,16746.0,16745.0,0.01043792]
[1672692499676,0.2094,16746.0,16745.0,0.01043792]
[1672692499993,0.5101,16746.0,16745.0,0.01043792]
[1672692505657,0.2094,16746.0,16745.0,0.01043792]
[1672692505870,0.5101,16746.0,16745.0,0.01043792]
[1672692506926,0.5101,16746.0,16745.0,0.01023729]
[1672692516488,0.2094,16746.0,16745.0,0.01023729]
[1672692516696,0.5101,16746.0,16745.0,0.01023729]
[1672692521944,0.2094,16746.0,16745.0,0.01023729]
[1672692522155,0.5101,16746.0,16745.0,0.01023729]
[1672692532466,0.2094,16746.0,16745.0,0.01023729]
[1672692532874,0.5101,16746.0,16745.0,0.01023729]
[1672692533088,0.2094,16746.0,16745.0,0.01023729]
[1672692533303,0.5101,16746.0,16745.0,0.01023729]
[1672692533509,0.2094,16746.0,16745.0,0.01023729]
[1672692533718,0.5101,16746.0,16745.0,0.01023729]
[1672692536772,0.2094,16746.0,16745.0,0.01023729]
[1672692537091,0.5101,16746.0,16745.0,0.01023729]
[1672692541819,0.5101,16746.0,16745.0,0.21023729]
[1672692543714,0.2094,16746.0,16745.0,0.21023729]
[1672692543925,0.5101,16746.0,16745.0,0.21023729]
[1672692545817,0.5101,16746.0,16745.0,0.01023729]
[1672692555706,0.5101,16746.0,16745.0,0.01015536]
[1672692562744,0.5101,16746.0,16745.0,0.21015536]
[1672692563378,0.5101,16746.0,16745.0,0.01015536]
[1672692575037,0.2094,16746.0,16745.0,0.01015536]
[1672692575350,0.5101,16746.0,16745.0,0.01015536]
[1672692578710,0.2094,16746.0,16745.0,0.01015536]
[1672692578921,0.5101,16746.0,16745.0,0.01015536]
[1672692589637,0.2094,16746.0,16745.0,0.01015536]
[1672692589849,0.5101,16746.0,16745.0,0.01015536]
[1672692591106,0.2094,16746.0,16745.0,0.01015536]
[1672692591322,0.5101,16746.0,16745.0,0.01015536]
[1672692591846,0.2094,16746.0,16745.0,0.01015536]
[1672692592265,0.5101,16746.0,16745.0,0.01015536]
[1672692598569,0.2094,16746.0,16745.0,0.01015536]
[1672692598774,0.5101,16746.0,16745.0,0.01015536]
[1672692601410,0.5101,16746.0,16745.0,0.00999752]
[1672692608553,0.2094,16746.0,16745.0,0.00999752]
[1672692608766,0.5101,16746.0,16745.0,0.00999752]
[1672692628752,0.2094,16746.0,16745.0,0.00999752]
[1672692628964,0.5101,16746.0,16745.0,0.00999752]
[1672692637686,0.2094,16746.0,16745.0,0.00999752]
[1672692637898,0.5101,16746.0,16745.0,0.00999752]
[1672692647776,0.2094,16746.0,16745.0,0.00999752]
[1672692647987,0.5101,16746.0,16745.0,0.00999752]
[1672692655655,0.5101,16746.0,16745.0,0.00981352]
[1672692666058,0.2094,16746.0,16745.0,0.00981352]
[1672692666268,0.5101,16746.0,16745.0,0.00981352]
[1672692676987,0.2094,16746.0,16745.0,0.00981352]
[1672692677185,0.5101,16746.0,16745.0,0.00981352]
[1672692680975,0.2094,16746.0,16745.0,0.00981352]
[1672692681188,0.5101,16746.0,16745.0,0.00981352]
[1672692684869,0.2094,16746.0,16745.0,0.00981352]
[1672692685075,0.5101,16746.0,16745.0,0.00981352]
[1672692693804,0.6144,16746.0,16741.0,0.5976]
[1672692694015,0.6144,16746.0,16742.0,0.2]
[1672692694016,0.3007,16743.0,16742.0,0.2]
[1672692694329,0.3007,16743.0,16740.0,0.3149]
[1672692694330,0.6136,16743.0,16740.0,0.3149]
[1672692694545,0.3007,16741.0,16737.0,0.3007]
[1672692694756,0.3007,16741.0,16738.0,3.77]
[1672692694968,0.1047,16739.0,16738.0,3.77]
[1672692695172,0.1047,16739.0,16737.0,0.8983]
[1672692695384,0.1038,16738.0,16737.0,0.5976]
[1672692695913,0.1038,16738.0,16737.0,4.3766]
[1672692697067,0.1047,16738.0,16737.0,4.3766]
[1672692697282,0.1177,16738.0,16737.0,4.3716]
[1672692697901,0.1177,16738.0,16737.0,0.004]
[1672692698326,0.1177,16738.0,16737.0,0.8016]
[1672692698642,0.1177,16738.0,16737.0,0.204]
[1672692702537,0.1177,16738.0,16737.0,0.5047]
[1672692707059,0.013,16738.0,16737.0,0.6094]
[1672692714096,0.013,16738.0,16737.0,4.3794]
[1672692717040,0.013,16738.0,16737.0,4.3785]
[1672692737019,0.013,16738.0,16737.0,4.3794]
[1672692737870,0.013,16738.0,16737.0,4.379169]